{"text_format":"3","workbook":"xlsx","n_sheets":4,"sheets":["Sākums","Izdevumi","Ienākumi","Peļņas vai zaud. kopsavilkums"],"not_rendered":{"charts":1},"read":"whole","date_system":"1900"}

{"sheet":"Sākums","index":0,"n_rows":8,"n_cols":2,"rows_kept":8}
[null,"PAR ŠO VEIDNI"]
[null,"Izmantojiet šo pasākuma budžeta darbgrāmatu, lai izsekotu pasākuma izmaksas un gūtos ienākumus."]
[null,"Ierakstiet pasākuma nosaukumu un ievadiet detalizētu informāciju tabulās darblapā Ienākumi un darblapā Izdevumi."]
[null,"Izdevumu kopsumma un ienākumu kopsumma tiek aprēķinātas automātiski."]
[null,"Peļņas un zaudējumu kopsavilkums un diagramma tiek automātiski atjaunināti darblapā Peļņas/zaudējumu kopsavilkums."]
[null,"Piezīme. "]
[null,"Papildu norādījumi ir sniegti kolonnā A katrā darblapā. Šis teksts ir paslēpts ar nolūku. Lai tekstu noņemtu, atlasiet kolonnu A, pēc tam atlasiet DZĒST. "]
[null,"Lai iegūtu papildinformāciju par tabulām, nospiediet taustiņu SHIFT, pēc tam F10 tabulā, atlasiet opciju TABULA un pēc tam atlasiet ALTERNATĪVAIS TEKSTS"]

{"sheet":"Izdevumi","index":1,"n_rows":32,"n_cols":8,"rows_kept":32,"merged":[[0,1,0,2],[0,3,0,4],[2,1,3,1]]}
["Šajā darblapā ievadiet plānotos un faktiskos izdevumus katrai kategorijai attiecīgajās tabulās, savukārt pasākuma nosaukumu ievadiet šūnā D1, lai pielāgotu šīs un citu darblapu nosaukumu. Šīs darblapas apakšvirsraksts ir šūnā H1. Šīs kolonnas šūnās ir noderīgi norādījumi par to, kā lietot šo darblapu. Nākamais norādījums ir šūnā A3.","Pasākuma budžets",null,"Pasākuma nosaukums",{"$nulls":3},"IZDEVUMI"]
[]
["Etiķete Izdevumu kopsumma ir šūnā pa labi, etiķete Plānotie ir šūnā G3, savukārt etiķete Faktiskie ir šūnā H3.","IZDEVUMI KOPĀ",{"$nulls":4},"Plānotās izmaksas","Faktiskie"]
["Plānoto izdevumu kopsumma šūnā G4 un Faktisko izdevumu kopsumma šūnā H4 tiek aprēķināta automātiski. Nākamais norādījums ir šūnā A6.",{"$nulls":5},{"$f":"SUM(C11,C19,C25,C32,G11,G19,G24)","v":{"v":882,"d":"882.00 EUR"}},{"$f":"SUM(D11,D19,D25,D32,H11,H19,H24)","v":{"v":302,"d":"302.00 EUR"}}]
[]
["Tabulā ievadiet norises vietas izmaksas, sākot ar šūnu pa labi, un ievadiet uzkodu un dzērienu izmaksas, sākot ar šūnu F6. Nākamais norādījums ir šūnā A13.","Vieta","Plānotās izmaksas","Faktiskie",null,"Dzērieni un uzkodas","Plānotās izmaksas","Faktiskie"]
[null,"Telpas un zāles izmaksas",{"v":500,"d":"500.00 EUR"},null,null,"Pārtika"]
[null,"Vietas personāls",{"$nulls":3},"Dzērieni",{"v":20,"d":"20.00 EUR"}]
[null,"Aprīkojums",{"$nulls":3},"Galdauti",null,{"v":20,"d":"20.00 EUR"}]
[null,"Galdi un krēsli",{"$nulls":3},"Personāla atalgojums un pateicības"]
[null,"Kopsumma",{"$f":"SUBTOTAL(109,VietasIzmaksas[Plānotās izmaksas])","v":{"v":500,"d":"500.00 EUR"}},{"$f":"SUBTOTAL(103,VietasIzmaksas[Faktiskie])","v":{"v":0,"d":"0.00 EUR"}},null,"Kopsumma",{"$f":"SUBTOTAL(109,UzkoduUnDzērienuIzmaksas[Plānotās izmaksas])","v":{"v":20,"d":"20.00 EUR"}},{"$f":"SUBTOTAL(103,UzkoduUnDzērienuIzmaksas[Faktiskie])","v":{"v":1,"d":"1.00 EUR"}}]
[]
["Tabulā ievadiet dekorāciju izmaksas, sākot ar šūnu pa labi, un ievadiet programmas izmaksas, sākot ar šūnu F13. Nākamais norādījums ir šūnā A21.","Dekorācijas","Plānotās izmaksas","Faktiskie",null,"Programma","Plānotās izmaksas","Faktiskie"]
[null,"Ziedi",{"v":200,"d":"200.00 EUR"},{"v":300,"d":"300.00 EUR"},null,"Izpildītāji"]
[null,"Sveces",{"$nulls":3},"Skaļruņi",{"v":30,"d":"30.00 EUR"}]
[null,"Apgaismojums",{"$nulls":3},"Ceļojums"]
[null,"Baloni",{"$nulls":3},"Viesnīca"]
[null,"Papīra izejmateriāli",{"$nulls":3},"Cits"]
[null,"Kopsumma",{"$f":"SUBTOTAL(109,DekorācijuIzmaksas[Plānotās izmaksas])","v":{"v":200,"d":"200.00 EUR"}},{"$f":"SUBTOTAL(109,DekorācijuIzmaksas[Faktiskie])","v":{"v":300,"d":"300.00 EUR"}},null,"Kopsumma",{"$f":"SUBTOTAL(109,ProgrammasIzmaksas[Plānotās izmaksas])","v":{"v":30,"d":"30.00 EUR"}},{"$f":"SUBTOTAL(103,ProgrammasIzmaksas[Faktiskie])","v":{"v":0,"d":"0.00 EUR"}}]
[]
["Tabulā ievadiet reklāmas izmaksas, sākot ar šūnu pa labi, un ievadiet apbalvojumu izmaksas, sākot ar šūnu F21. Nākamais norādījums ir šūnā A27.","Reklāma","Plānotās izmaksas","Faktiskie",null,"Balvas","Plānotās izmaksas","Faktiskie"]
[null,"Grafiskie darbi",{"$nulls":3},"Lentes/plāksnes/balvas"]
[null,"Kopēšana/drukāšana",{"v":20,"d":"20.00 EUR"},null,null,"Dāvanas",{"v":100,"d":"100.00 EUR"}]
[null,"Pasta izdevumi",{"$nulls":3},"Kopsumma",{"$f":"SUBTOTAL(109,ApbalvojumuIzmaksas[Plānotās izmaksas])","v":{"v":100,"d":"100.00 EUR"}},{"$f":"SUBTOTAL(103,ApbalvojumuIzmaksas[Faktiskie])","v":{"v":0,"d":"0.00 EUR"}}]
[null,"Kopsumma",{"$f":"SUBTOTAL(109,ReklāmasIzmaksas[Plānotās izmaksas])","v":{"v":20,"d":"20.00 EUR"}},{"$f":"SUBTOTAL(103,ReklāmasIzmaksas[Faktiskie])","v":{"v":0,"d":"0.00 EUR"}}]
[]
["Tabulā ievadiet dažādus izdevumus, sākot ar šūnu pa labi.","Dažādi","Plānotās izmaksas","Faktiskie"]
[null,"Tālrunis",null,{"v":13,"d":"13.00 EUR"}]
[null,"Transports",{"v":12,"d":"12.00 EUR"}]
[null,"Vēstuļpapīrs"]
[null,"Faksa pakalpojumi"]
[null,"Kopsumma",{"$f":"SUBTOTAL(109,DažādasIzmaksas[Plānotās izmaksas])","v":{"v":12,"d":"12.00 EUR"}},{"$f":"SUBTOTAL(103,DažādasIzmaksas[Faktiskie])","v":{"v":1,"d":"1.00 EUR"}}]

{"sheet":"Ienākumi","index":2,"n_rows":29,"n_cols":7,"rows_kept":29,"merged":[[0,1,0,2],[2,1,3,1]]}
["Šajā darblapā ievadiet plānotos un faktiskos ienākumus no katras kategorijas attiecīgajās tabulās. Šīs darblapas nosaukums tiek automātiski atjaunināts šūnās pa labi. Apakšvirsraksts ir šūnā G1. Šīs kolonnas šūnās ir noderīgi norādījumi par to, kā lietot šo darblapu. Nākamais norādījums ir šūnā A3.",{"$f":"Izdevumi!B1","v":"Pasākuma budžets"},null,{"$f":"Izdevumi!D1","v":"Pasākuma nosaukums"},null,null,"IENĀKUMI"]
[]
["Etiķete Ienākumu kopsumma ir šūnā pa labi, etiķete Plānotie ir šūnā F3, savukārt etiķete Faktiskie ir šūnā G3.","IENĀKUMU KOPSUMMA",{"$nulls":3},"Plānotās izmaksas","Faktiskie"]
["Plānoto ieņēmumu kopsumma tiek automātiski aprēķināta šūnā F4, bet faktisko ieņēmumu kopsumma — šūnā G4.",{"$nulls":4},{"$f":"SUM(Apmeklētāji[[#Totals],[Plānotie ienākumi]],ReklāmasProgrammā[[#Totals],[Plānotie ienākumi]],EksponētājiUnPiegādātāji[[#Totals],[Plānotie ienākumi]],PrečuPārdošana[[#Totals],[Plānotie ienākumi]])","v":{"v":1936,"d":"1,936.00 EUR"}},{"$f":"SUM(Apmeklētāji[[#Totals],[Faktiskie ienākumi]],ReklāmasProgrammā[[#Totals],[Faktiskie ienākumi]],EksponētājiUnPiegādātāji[[#Totals],[Faktiskie ienākumi]],PrečuPārdošana[[#Totals],[Faktiskie ienākumi]])","v":{"v":1831,"d":"1,831.00 EUR"}}]
["Apmeklējuma etiķete ir šūnā pa labi.","APMEKLĒTĀJI"]
["Tabulā ievadiet plānoto un faktisko apmeklētāju skaitu ar biļešu cenām, sākot no šūnas pa labi. Plānotie un faktiskie ienākumi no ieejas biļetēm tiek aprēķināti automātiski. Nākamais norādījums ir šūnā A11.","Plānotais sk.","Faktiskais sk.","Veids","Cena","Plānotie ienākumi","Faktiskie ienākumi"]
[null,300,278,"Pieaugušie @",{"v":5,"d":"5.00 EUR"},{"$f":"B7*E7","v":{"v":1500,"d":"1,500.00 EUR"}},{"$f":"C7*E7","v":{"v":1390,"d":"1,390.00 EUR"}}]
[null,197,195,"Bērni @",{"v":2,"d":"2.00 EUR"},{"$f":"B8*E8","v":{"v":394,"d":"394.00 EUR"}},{"$f":"C8*E8","v":{"v":390,"d":"390.00 EUR"}}]
[null,42,51,"Citi @",{"v":1,"d":"1.00 EUR"},{"$f":"B9*E9","v":{"v":42,"d":"42.00 EUR"}},{"$f":"C9*E9","v":{"v":51,"d":"51.00 EUR"}}]
[null,"Kopsumma",{"$nulls":3},{"$f":"SUBTOTAL(109,Apmeklētāji[Plānotie ienākumi])","v":{"v":1936,"d":"1,936.00 EUR"}},{"$f":"SUBTOTAL(109,Apmeklētāji[Faktiskie ienākumi])","v":{"v":1831,"d":"1,831.00 EUR"}}]
["Reklāmu programmā etiķete ir šūnā pa labi.","REKLĀMAS PROGRAMMĀ"]
["Tabulā ievadiet plānoto un faktisko reklāmu skaitu programmā un reklāmas cenas, sākot no šūnas pa labi. Plānotie un faktiskie ienākumi no reklāmām tiek aprēķināti automātiski. Nākamais norādījums ir šūnā A17.","Plānotais sk.","Faktiskais sk.","Veids","Cena","Plānotie ienākumi","Faktiskie ienākumi"]
[null,12,null,"Titullapas @",null,{"$f":"B13*E13","v":{"v":0,"d":"0.00 EUR"}},{"$f":"C13*E13","v":{"v":0,"d":"0.00 EUR"}}]
[null,null,158,"Puslapas @",null,{"$f":"B14*E14","v":{"v":0,"d":"0.00 EUR"}},{"$f":"C14*E14","v":{"v":0,"d":"0.00 EUR"}}]
[null,4,null,"Ceturtdaļlapas @",null,{"$f":"B15*E15","v":{"v":0,"d":"0.00 EUR"}},{"$f":"C15*E15","v":{"v":0,"d":"0.00 EUR"}}]
[null,"Kopsumma",{"$nulls":3},{"$f":"SUBTOTAL(109,ReklāmasProgrammā[Plānotie ienākumi])","v":{"v":0,"d":"0.00 EUR"}},{"$f":"SUBTOTAL(109,ReklāmasProgrammā[Faktiskie ienākumi])","v":{"v":0,"d":"0.00 EUR"}}]
["Eksponētāju vai piegādātāju etiķete ir šūnā pa labi.","EKSPONĒTĀJI/PIEGĀDĀTĀJI"]
["Tabulā ievadiet plānoto un faktisko eksponētāju un piegādātāju skaitu un stendu cenas, sākot no šūnas pa labi. Plānotie un faktiskie ienākumi tiek aprēķināti automātiski. Nākamais norādījums ir šūnā A23.","Plānotais sk.","Faktiskais sk.","Veids","Cena","Plānotie ienākumi","Faktiskie ienākumi"]
[null,23,null,"Lieli stendi @",null,{"$f":"B19*E19","v":{"v":0,"d":"0.00 EUR"}},{"$f":"C19*E19","v":{"v":0,"d":"0.00 EUR"}}]
[null,354,null,"Vid. stendi @",null,{"$f":"B20*E20","v":{"v":0,"d":"0.00 EUR"}},{"$f":"C20*E20","v":{"v":0,"d":"0.00 EUR"}}]
[null,56,null,"Mazi stendi @",null,{"$f":"B21*E21","v":{"v":0,"d":"0.00 EUR"}},{"$f":"C21*E21","v":{"v":0,"d":"0.00 EUR"}}]
[null,"Kopsumma",{"$nulls":3},{"$f":"SUBTOTAL(109,EksponētājiUnPiegādātāji[Plānotie ienākumi])","v":{"v":0,"d":"0.00 EUR"}},{"$f":"SUBTOTAL(109,EksponētājiUnPiegādātāji[Faktiskie ienākumi])","v":{"v":0,"d":"0.00 EUR"}}]
["Preču pārdošanas etiķete ir šūnā pa labi.","PREČU PĀRDOŠANA"]
["Tabulā ievadiet plānoto un faktisko pārdoto preču skaitu programmā un preču cenas, sākot no šūnas pa labi. Plānotie un faktiskie ienākumi tiek aprēķināti automātiski.","Plānotais sk.","Faktiskais sk.","Veids","Cena","Plānotie ienākumi","Faktiskie ienākumi"]
[{"$nulls":3},"Preces @",null,{"$f":"B25*E25","v":{"v":0,"d":"0.00 EUR"}},{"$f":"C25*E25","v":{"v":0,"d":"0.00 EUR"}}]
[null,123,null,"Preces @",null,{"$f":"B26*E26","v":{"v":0,"d":"0.00 EUR"}},{"$f":"C26*E26","v":{"v":0,"d":"0.00 EUR"}}]
[{"$nulls":3},"Preces @",null,{"$f":"B27*E27","v":{"v":0,"d":"0.00 EUR"}},{"$f":"C27*E27","v":{"v":0,"d":"0.00 EUR"}}]
[null,13,null,"Preces @",null,{"$f":"B28*E28","v":{"v":0,"d":"0.00 EUR"}},{"$f":"C28*E28","v":{"v":0,"d":"0.00 EUR"}}]
[null,"Kopsumma",{"$nulls":3},{"$f":"SUBTOTAL(109,PrečuPārdošana[Plānotie ienākumi])","v":{"v":0,"d":"0.00 EUR"}},{"$f":"SUBTOTAL(109,PrečuPārdošana[Faktiskie ienākumi])","v":{"v":0,"d":"0.00 EUR"}}]

{"sheet":"Peļņas vai zaud. kopsavilkums","index":3,"n_rows":8,"n_cols":7,"rows_kept":8,"merged":[[0,1,0,2]]}
["Peļņas un zaudējumu kopsavilkums un diagramma, kurā norādītas ienākumu un izdevumu kopsummas, tiek automātiski atjauninātas šajā darblapā. Šīs darblapas nosaukums tiek automātiski atjaunināts šūnās pa labi. Apakšvirsraksts ir šūnās G1 un G2. Šīs kolonnas šūnās ir noderīgi norādījumi par to, kā lietot šo darblapu. Nākamais norādījums ir šūnā A3.",{"$f":"Izdevumi!B1","v":"Pasākuma budžets"},null,{"$f":"Izdevumi!D1","v":"Pasākuma nosaukums"},null,null,"PEĻŅA "]
[{"$nulls":6},"Zaudējumu kopsavilkums"]
["Šūnā E3 ir joslu diagramma, kurā salīdzināti plānotie ienākumi un izdevumi ar faktiskajiem ienākumiem un izdevumiem.",{"$nulls":3},"Šajā šūnā ir joslu diagramma, kurā salīdzināti plānotie ienākumi un izdevumi ar faktiskajiem ienākumiem un izdevumiem."]
["Kopsavilkuma tabula, kas sākas šūnā pa labi, tiek atjaunināta automātiski. Nākamais norādījums ir šūnā A8."," Kopā","Plānotās izmaksas","Faktiskie"]
[null,"Ienākumu kopsumma",{"$f":"Ienākumi!F10","v":{"v":1936,"d":"1,936.00 EUR"}},{"$f":"Ienākumi!F4","v":{"v":1936,"d":"1,936.00 EUR"}}]
[null,"Izdevumu kopsumma",{"$f":"Izdevumi!G4","v":{"v":882,"d":"882.00 EUR"}},{"$f":"Izdevumi!H4","v":{"v":302,"d":"302.00 EUR"}}]
[]
["Plānotās peļņas vai zaudējumu kopsumma tiek automātiski aprēķināta šūnā C8, bet faktiskās peļņas vai zaudējumu kopsumma — šūnā D8.","Kopējā peļņa\n(vai zudums)",{"$f":"C5-C6","v":{"v":1054,"d":"1,054.00 EUR"}},{"$f":"D5-D6","v":{"v":1634,"d":"1,634.00 EUR"}}]